[Event "Late-Titled-Tuesday-Blitz-April-02-2024"]
[Site "Chess.com"]
[Date "2024.04.02"]
[Round "8"]
[White "Mikhal867"]
[Black "RodokininEV"]
[Result "1/2-1/2"]
[WhiteElo "2528"]
[BlackElo "2690"]
[TimeControl "180+1"]
[EndTime "15:26:26 PDT"]
[Termination "Game drawn by repetition"]

1. c4 {[%clk 0:03:00.9]} 1... Nf6 {[%clk 0:02:58.1]} 2. Nc3 {[%clk 0:03:00.2]}
2... c5 {[%clk 0:02:58.1]} 3. g3 {[%clk 0:02:59.1]} 3... g6 {[%clk 0:02:58]} 4.
Bg2 {[%clk 0:02:59]} 4... Bg7 {[%clk 0:02:58.3]} 5. e4 {[%clk 0:02:55.5]} 5...
Nc6 {[%clk 0:02:57.6]} 6. Nge2 {[%clk 0:02:54.6]} 6... O-O {[%clk 0:02:57.7]} 7.
O-O {[%clk 0:02:50.8]} 7... e5 {[%clk 0:02:56.5]} 8. d3 {[%clk 0:02:49.7]} 8...
d6 {[%clk 0:02:55.4]} 9. h3 {[%clk 0:02:49.3]} 9... Rb8 {[%clk 0:02:53.6]} 10.
f4 {[%clk 0:02:49.2]} 10... a6 {[%clk 0:02:52.3]} 11. f5 {[%clk 0:02:08.9]}
11... b5 {[%clk 0:02:51.3]} 12. g4 {[%clk 0:02:03]} 12... Nd7 {[%clk 0:02:45.5]}
13. Nd5 {[%clk 0:01:59.9]} 13... Nb6 {[%clk 0:02:38.8]} 14. b3 {[%clk 0:01:59]}
14... f6 {[%clk 0:02:34.1]} 15. Ng3 {[%clk 0:01:56.3]} 15... Nd4 {[%clk
0:02:31.4]} 16. Be3 {[%clk 0:01:51.3]} 16... Bb7 {[%clk 0:02:28.3]} 17. Ne2
{[%clk 0:01:48.9]} 17... g5 {[%clk 0:02:24.5]} 18. Nxd4 {[%clk 0:01:42.3]} 18...
cxd4 {[%clk 0:02:25]} 19. Bd2 {[%clk 0:01:40]} 19... Re8 {[%clk 0:02:20.8]} 20.
Ba5 {[%clk 0:01:32.3]} 20... Bxd5 {[%clk 0:02:14]} 21. cxd5 {[%clk 0:01:32.4]}
21... Qd7 {[%clk 0:02:10.7]} 22. Rc1 {[%clk 0:01:31.9]} 22... Rec8 {[%clk
0:02:10.7]} 23. Qd2 {[%clk 0:01:30.6]} 23... Bf8 {[%clk 0:02:00.7]} 24. Kf2
{[%clk 0:01:25.1]} 24... Be7 {[%clk 0:01:58.4]} 25. Bxb6 {[%clk 0:01:16.9]}
25... Rxb6 {[%clk 0:01:56.3]} 26. Rxc8+ {[%clk 0:01:16.8]} 26... Qxc8 {[%clk
0:01:57.2]} 27. Rc1 {[%clk 0:01:16.7]} 27... Qb8 {[%clk 0:01:53.4]} 28. Qc2
{[%clk 0:01:14.4]} 28... Rb7 {[%clk 0:01:53.1]} 29. Qc6 {[%clk 0:01:12.1]} 29...
Kf8 {[%clk 0:01:46]} 30. b4 {[%clk 0:01:07.4]} 30... Qa7 {[%clk 0:01:35.4]} 31.
Bf3 {[%clk 0:00:59]} 31... a5 {[%clk 0:01:28.7]} 32. bxa5 {[%clk 0:00:56.9]}
32... Qxa5 {[%clk 0:01:20.2]} 33. Rc2 {[%clk 0:00:52.7]} 33... Qa7 {[%clk
0:01:12.8]} 34. Bd1 {[%clk 0:00:47.9]} 34... Qb6 {[%clk 0:01:07.9]} 35. Qc8+
{[%clk 0:00:45.7]} 35... Kg7 {[%clk 0:01:07.8]} 36. Qe6 {[%clk 0:00:42.6]} 36...
Rc7 {[%clk 0:01:01.2]} 37. Rc6 {[%clk 0:00:42.6]} 37... Qa5 {[%clk 0:00:52.2]}
38. Kf3 {[%clk 0:00:42.7]} 38... h5 {[%clk 0:00:47.5]} 39. gxh5 {[%clk
0:00:41.3]} 39... Qe1 {[%clk 0:00:41.8]} 40. Rxc7 {[%clk 0:00:25.2]} 40... Qxd1+
{[%clk 0:00:39.2]} 41. Kf2 {[%clk 0:00:24.9]} 41... Qd2+ {[%clk 0:00:38.1]} 42.
Kg1 {[%clk 0:00:24.4]} 42... Qe3+ {[%clk 0:00:34.7]} 43. Kg2 {[%clk 0:00:24.3]}
43... Qe2+ {[%clk 0:00:31.8]} 44. Kg1 {[%clk 0:00:24.3]} 44... Kh6 {[%clk
0:00:28.4]} 45. Rxe7 {[%clk 0:00:21.2]} 45... Qe1+ {[%clk 0:00:21.6]} 46. Kg2
{[%clk 0:00:20.9]} 46... Qe2+ {[%clk 0:00:21.9]} 47. Kg1 {[%clk 0:00:21]} 47...
Qe1+ {[%clk 0:00:22.4]} 48. Kg2 {[%clk 0:00:21.5]} 48... Qe2+ {[%clk 0:00:23]}
49. Kg1 {[%clk 0:00:22]} 1/2-1/2

[Event "Late-Titled-Tuesday-Blitz-April-02-2024"]
[Site "Chess.com"]
[Date "2024.04.02"]
[Round "8"]
[White "Koalaskakistis"]
[Black "Flaccidmoves"]
[Result "1-0"]
[WhiteElo "2540"]
[BlackElo "2416"]
[TimeControl "180+1"]
[EndTime "15:26:30 PDT"]
[Termination "Koalaskakistis won by resignation"]

1. d4 {[%clk 0:03:00.9]} 1... Nf6 {[%clk 0:02:57.9]} 2. c4 {[%clk 0:03:01.2]}
2... g6 {[%clk 0:02:58.1]} 3. Nc3 {[%clk 0:03:01.2]} 3... Bg7 {[%clk 0:02:57.7]}
4. e4 {[%clk 0:03:01.4]} 4... O-O {[%clk 0:02:57.4]} 5. Nf3 {[%clk 0:03:00.7]}
5... d6 {[%clk 0:02:57.4]} 6. Be2 {[%clk 0:02:57.3]} 6... Bg4 {[%clk 0:02:56]}
7. h3 {[%clk 0:02:54.1]} 7... Bxf3 {[%clk 0:02:55.4]} 8. Bxf3 {[%clk 0:02:55]}
8... e5 {[%clk 0:02:54.8]} 9. d5 {[%clk 0:02:54.4]} 9... Nfd7 {[%clk 0:02:46.7]}
10. O-O {[%clk 0:02:50.6]} 10... Bf6 {[%clk 0:02:42.4]} 11. Bh6 {[%clk
0:02:38.4]} 11... Re8 {[%clk 0:02:41.9]} 12. Qd2 {[%clk 0:02:37.7]} 12... a5
{[%clk 0:02:36.6]} 13. Bg4 {[%clk 0:02:33.4]} 13... Na6 {[%clk 0:02:31.8]} 14.
f4 {[%clk 0:02:27.5]} 14... exf4 {[%clk 0:02:31.3]} 15. Qxf4 {[%clk 0:02:28.4]}
15... Nac5 {[%clk 0:02:23.7]} 16. Rf3 {[%clk 0:02:10.8]} 16... Qe7 {[%clk
0:02:10.1]} 17. Raf1 {[%clk 0:02:05.7]} 17... Bd4+ {[%clk 0:02:08.9]} 18. Kh1
{[%clk 0:02:05.7]} 18... Ne5 {[%clk 0:02:08.7]} 19. Bg5 {[%clk 0:01:57.4]} 19...
Qf8 {[%clk 0:01:49.7]} 20. Bh6 {[%clk 0:01:57.4]} 20... Qe7 {[%clk 0:01:49]} 21.
Bg5 {[%clk 0:01:57.9]} 21... Qf8 {[%clk 0:01:48.9]} 22. Rg3 {[%clk 0:01:58.6]}
22... Nxc4 {[%clk 0:01:24.1]} 23. Be2 {[%clk 0:01:05.2]} 23... Be5 {[%clk
0:01:20.5]} 24. Qg4 {[%clk 0:01:05.4]} 24... Bxg3 {[%clk 0:01:08.6]} 25. Qxg3
{[%clk 0:01:05.5]} 25... Ne5 {[%clk 0:01:07.1]} 26. h4 {[%clk 0:00:58.8]} 26...
Qg7 {[%clk 0:00:52.7]} 27. h5 {[%clk 0:00:56.2]} 27... gxh5 {[%clk 0:00:51.9]}
28. Qh4 {[%clk 0:00:53.3]} 28... Ncd7 {[%clk 0:00:47.7]} 29. Bxh5 {[%clk
0:00:51.6]} 29... Ng6 {[%clk 0:00:46.6]} 30. Qh3 {[%clk 0:00:44.6]} 30... Nde5
{[%clk 0:00:46.2]} 31. Ne2 {[%clk 0:00:37.9]} 31... a4 {[%clk 0:00:22.3]} 32.
Ng3 {[%clk 0:00:37.5]} 32... a3 {[%clk 0:00:19.7]} 33. Nf5 {[%clk 0:00:31.7]}
33... Qf8 {[%clk 0:00:19.9]} 34. Bh6 {[%clk 0:00:21.4]} 34... axb2 {[%clk
0:00:19.2]} 35. Qb3 {[%clk 0:00:17.6]} 35... Qxh6 {[%clk 0:00:13.6]} 36. Nxh6+
{[%clk 0:00:17.8]} 36... Kg7 {[%clk 0:00:14.5]} 37. Nf5+ {[%clk 0:00:18.2]}
37... Kf6 {[%clk 0:00:13.1]} 38. Nxd6+ {[%clk 0:00:17.5]} 38... Kg5 {[%clk
0:00:13.6]} 39. Rf5+ {[%clk 0:00:15.2]} 39... Kh6 {[%clk 0:00:12.3]} 40. Nxe8
{[%clk 0:00:14.6]} 40... Rxe8 {[%clk 0:00:10.7]} 41. Qxb2 {[%clk 0:00:14.6]} 1-0

[Event "Late-Titled-Tuesday-Blitz-April-02-2024"]
[Site "Chess.com"]
[Date "2024.04.02"]
[Round "8"]
[White "HajiyevKanan"]
[Black "stasOR4ik"]
[Result "0-1"]
[WhiteElo "2599"]
[BlackElo "2450"]
[TimeControl "180+1"]
[EndTime "15:26:33 PDT"]
[Termination "stasOR4ik won by checkmate"]

1. d4 {[%clk 0:03:00.9]} 1... e6 {[%clk 0:02:59.7]} 2. Nf3 {[%clk 0:03:01.6]}
2... d5 {[%clk 0:02:59.7]} 3. c4 {[%clk 0:03:02.5]} 3... Nf6 {[%clk 0:02:59.7]}
4. cxd5 {[%clk 0:03:03.1]} 4... exd5 {[%clk 0:02:59.6]} 5. Nc3 {[%clk 0:03:04]}
5... c6 {[%clk 0:02:59.5]} 6. Qc2 {[%clk 0:02:57.8]} 6... g6 {[%clk 0:02:53.1]}
7. Bg5 {[%clk 0:02:57.3]} 7... Bg7 {[%clk 0:02:50.9]} 8. e3 {[%clk 0:02:57.3]}
8... Bf5 {[%clk 0:02:50.6]} 9. Bd3 {[%clk 0:02:58]} 9... Bxd3 {[%clk 0:02:50]}
10. Qxd3 {[%clk 0:02:58.9]} 10... h6 {[%clk 0:02:47.6]} 11. Bh4 {[%clk
0:02:58.8]} 11... O-O {[%clk 0:02:43.7]} 12. O-O {[%clk 0:02:59.1]} 12... Nbd7
{[%clk 0:02:43.4]} 13. Rab1 {[%clk 0:02:59.7]} 13... a5 {[%clk 0:02:42.1]} 14.
Qc2 {[%clk 0:02:59.9]} 14... Re8 {[%clk 0:02:28.8]} 15. h3 {[%clk 0:03:00.1]}
15... g5 {[%clk 0:02:24.2]} 16. Bg3 {[%clk 0:03:00.4]} 16... Ne4 {[%clk
0:02:24.6]} 17. Nxe4 {[%clk 0:03:00.5]} 17... Rxe4 {[%clk 0:02:23.7]} 18. a3
{[%clk 0:02:57.3]} 18... h5 {[%clk 0:02:16.6]} 19. Nd2 {[%clk 0:02:42.8]} 19...
Re6 {[%clk 0:02:15.6]} 20. b4 {[%clk 0:02:39.5]} 20... axb4 {[%clk 0:02:15]} 21.
axb4 {[%clk 0:02:40.4]} 21... h4 {[%clk 0:02:01]} 22. Bh2 {[%clk 0:02:39.9]}
22... Nf6 {[%clk 0:01:48.9]} 23. b5 {[%clk 0:02:38.8]} 23... g4 {[%clk
0:01:48.1]} 24. Qf5 {[%clk 0:02:26.7]} 24... Ra2 {[%clk 0:01:41.3]} 25. Nb3
{[%clk 0:02:24.3]} 25... g3 {[%clk 0:01:32.2]} 26. fxg3 {[%clk 0:02:24.6]} 26...
Rxe3 {[%clk 0:01:32]} 27. Nc1 {[%clk 0:01:58.5]} 27... Rd2 {[%clk 0:00:20.1]}
28. bxc6 {[%clk 0:01:53.6]} 28... hxg3 {[%clk 0:00:19.5]} 29. cxb7 {[%clk
0:01:47.4]} 29... gxh2+ {[%clk 0:00:19.4]} 30. Kh1 {[%clk 0:01:46.3]} 30... Ne4
{[%clk 0:00:12.1]} 31. Qxf7+ {[%clk 0:00:52.6]} 31... Kh7 {[%clk 0:00:11.7]} 32.
b8=Q {[%clk 0:00:51.2]} 32... Ng3+ {[%clk 0:00:11]} 33. Kxh2 {[%clk 0:00:51.8]}
33... Nxf1+ {[%clk 0:00:10.8]} 34. Qxf1 {[%clk 0:00:51.3]} 34... Qg5 {[%clk
0:00:05.1]} 35. Rb2 {[%clk 0:00:32.3]} 35... Rxh3+ {[%clk 0:00:04.7]} 36. Kxh3
{[%clk 0:00:22]} 36... Qh5+ {[%clk 0:00:05.2]} 37. Kg3 {[%clk 0:00:22.2]} 37...
Qg5+ {[%clk 0:00:05.6]} 38. Kh2 {[%clk 0:00:22.7]} 38... Qh5+ {[%clk 0:00:03.5]}
39. Kg1 {[%clk 0:00:23.1]} 39... Bxd4+ {[%clk 0:00:02.6]} 40. Qf2 {[%clk
0:00:18.1]} 40... Rd1# {[%clk 0:00:02.9]} 0-1

[Event "Late-Titled-Tuesday-Blitz-April-02-2024"]
[Site "Chess.com"]
[Date "2024.04.02"]
[Round "8"]
[White "vova-79"]
[Black "alexrustemov"]
[Result "0-1"]
[WhiteElo "2561"]
[BlackElo "2857"]
[TimeControl "180+1"]
[EndTime "15:26:34 PDT"]
[Termination "alexrustemov won on time"]

1. d4 {[%clk 0:02:56.3]} 1... g6 {[%clk 0:02:59.8]} 2. c4 {[%clk 0:02:55.5]}
2... Bg7 {[%clk 0:03:00.2]} 3. Nf3 {[%clk 0:02:55.8]} 3... d6 {[%clk 0:03:00.5]}
4. g3 {[%clk 0:02:54.6]} 4... c5 {[%clk 0:02:58.8]} 5. Bg2 {[%clk 0:02:53.9]}
5... Nf6 {[%clk 0:02:40.5]} 6. dxc5 {[%clk 0:02:49.8]} 6... Qa5+ {[%clk
0:02:39.8]} 7. Nbd2 {[%clk 0:02:30.6]} 7... Qxc5 {[%clk 0:02:39.7]} 8. O-O
{[%clk 0:02:31.3]} 8... O-O {[%clk 0:02:38.6]} 9. Qa4 {[%clk 0:02:06.5]} 9...
Nbd7 {[%clk 0:02:31.4]} 10. b4 {[%clk 0:02:05.8]} 10... Qc7 {[%clk 0:02:14.2]}
11. Bb2 {[%clk 0:02:04.4]} 11... a5 {[%clk 0:02:13.1]} 12. a3 {[%clk 0:02:00.9]}
12... Nb6 {[%clk 0:02:05.4]} 13. Qb3 {[%clk 0:02:00.4]} 13... Be6 {[%clk
0:01:59]} 14. Rac1 {[%clk 0:01:45.6]} 14... Rfc8 {[%clk 0:01:57.9]} 15. Nd4
{[%clk 0:01:22.3]} 15... Bxc4 {[%clk 0:01:19.6]} 16. Nxc4 {[%clk 0:01:19.9]}
16... Nxc4 {[%clk 0:01:19.9]} 17. bxa5 {[%clk 0:01:17.7]} 17... d5 {[%clk
0:01:15.5]} 18. Bc3 {[%clk 0:01:08.7]} 18... e6 {[%clk 0:01:05.9]} 19. Nb5
{[%clk 0:00:45.9]} 19... Qc6 {[%clk 0:01:00]} 20. a4 {[%clk 0:00:40]} 20... Nd7
{[%clk 0:00:57.6]} 21. Bxg7 {[%clk 0:00:35.8]} 21... Kxg7 {[%clk 0:00:58.5]} 22.
e4 {[%clk 0:00:32]} 22... Nf6 {[%clk 0:00:51]} 23. exd5 {[%clk 0:00:29.6]} 23...
exd5 {[%clk 0:00:50.5]} 24. Rfd1 {[%clk 0:00:26.7]} 24... Nxa5 {[%clk
0:00:36.6]} 25. Qb2 {[%clk 0:00:13.5]} 25... Nc4 {[%clk 0:00:35.8]} 26. Qb3
{[%clk 0:00:07]} 26... Qc5 {[%clk 0:00:23.4]} 27. Bh3 {[%clk 0:00:05.3]} 27...
Re8 {[%clk 0:00:22]} 28. Nd4 {[%clk 0:00:04.3]} 28... Re7 {[%clk 0:00:16.1]} 29.
Bf1 {[%clk 0:00:04.3]} 29... Rc8 {[%clk 0:00:13.9]} 30. Bh3 {[%clk 0:00:03.5]}
30... Rce8 {[%clk 0:00:13.5]} 31. Bf1 {[%clk 0:00:03.2]} 31... Rc7 {[%clk
0:00:13]} 32. Nb5 {[%clk 0:00:02.4]} 32... Ne4 {[%clk 0:00:05.7]} 0-1

[Event "Late-Titled-Tuesday-Blitz-April-02-2024"]
[Site "Chess.com"]
[Date "2024.04.02"]
[Round "8"]
[White "wild3000"]
[Black "Kotlyar_K"]
[Result "0-1"]
[WhiteElo "2411"]
[BlackElo "2599"]
[TimeControl "180+1"]
[EndTime "15:26:34 PDT"]
[Termination "Kotlyar_K won on time"]

1. d4 {[%clk 0:01:55.6]} 1... Nf6 {[%clk 0:02:58.4]} 2. Nf3 {[%clk 0:01:56.2]}
2... g6 {[%clk 0:02:57.9]} 3. e3 {[%clk 0:01:56.7]} 3... Bg7 {[%clk 0:02:56.4]}
4. Be2 {[%clk 0:01:57.1]} 4... O-O {[%clk 0:02:56.5]} 5. O-O {[%clk 0:01:58]}
5... c5 {[%clk 0:02:53.4]} 6. c3 {[%clk 0:01:55.6]} 6... d5 {[%clk 0:02:38.2]}
7. Nbd2 {[%clk 0:01:54.9]} 7... Nc6 {[%clk 0:02:34.6]} 8. dxc5 {[%clk
0:01:40.7]} 8... a5 {[%clk 0:02:24.7]} 9. Nd4 {[%clk 0:01:38.7]} 9... Nd7 {[%clk
0:02:20.1]} 10. Bb5 {[%clk 0:01:15.8]} 10... Qc7 {[%clk 0:02:04.9]} 11. a4
{[%clk 0:01:04.4]} 11... Nxc5 {[%clk 0:02:00.7]} 12. N2b3 {[%clk 0:01:04.4]}
12... Nxb3 {[%clk 0:01:53.3]} 13. Qxb3 {[%clk 0:01:02.6]} 13... e5 {[%clk
0:01:53.5]} 14. Nf3 {[%clk 0:01:00.2]} 14... Be6 {[%clk 0:01:35.3]} 15. Ng5
{[%clk 0:00:59.4]} 15... e4 {[%clk 0:01:31.5]} 16. Nxe6 {[%clk 0:00:51.5]} 16...
fxe6 {[%clk 0:01:32.4]} 17. Bd2 {[%clk 0:00:45.4]} 17... Ne5 {[%clk 0:01:26]}
18. Be2 {[%clk 0:00:39.8]} 18... Rac8 {[%clk 0:01:04.5]} 19. Rfd1 {[%clk
0:00:36.7]} 19... Rf5 {[%clk 0:00:52.3]} 20. Be1 {[%clk 0:00:36.3]} 20... Nf3+
{[%clk 0:00:40.1]} 21. Bxf3 {[%clk 0:00:22.7]} 21... exf3 {[%clk 0:00:40.8]} 22.
g3 {[%clk 0:00:22.9]} 22... Rh5 {[%clk 0:00:29.6]} 23. Qb5 {[%clk 0:00:19.9]}
23... Qe5 {[%clk 0:00:21.5]} 24. Rd4 {[%clk 0:00:18.3]} 24... Qf5 {[%clk
0:00:18.1]} 25. g4 {[%clk 0:00:11.3]} 25... Rg5 {[%clk 0:00:16]} 26. h3 {[%clk
0:00:11]} 26... Bxd4 {[%clk 0:00:11.5]} 27. cxd4 {[%clk 0:00:11]} 27... h5
{[%clk 0:00:11.9]} 28. Qd7 {[%clk 0:00:08.9]} 28... Rf8 {[%clk 0:00:11.7]} 29.
Rc1 {[%clk 0:00:05.4]} 29... hxg4 {[%clk 0:00:11.7]} 30. h4 {[%clk 0:00:05.9]}
30... Rh5 {[%clk 0:00:10.5]} 31. Rc7 {[%clk 0:00:05.5]} 31... Qf7 {[%clk
0:00:10.8]} 32. Qd6 {[%clk 0:00:05.3]} 32... Qf6 {[%clk 0:00:10.3]} 33. Bxa5
{[%clk 0:00:03.2]} 33... Rxh4 {[%clk 0:00:10]} 0-1

[Event "Late-Titled-Tuesday-Blitz-April-02-2024"]
[Site "Chess.com"]
[Date "2024.04.02"]
[Round "8"]
[White "guillembaches"]
[Black "Rashad_Zeynalli"]
[Result "0-1"]
[WhiteElo "2583"]
[BlackElo "2700"]
[TimeControl "180+1"]
[EndTime "15:26:35 PDT"]
[Termination "Rashad_Zeynalli won on time"]

1. d4 {[%clk 0:03:00.9]} 1... d5 {[%clk 0:02:59.7]} 2. Nf3 {[%clk 0:03:00.8]}
2... Nf6 {[%clk 0:02:59.5]} 3. c4 {[%clk 0:03:00.7]} 3... e6 {[%clk 0:03:00]} 4.
cxd5 {[%clk 0:03:00.7]} 4... exd5 {[%clk 0:03:00]} 5. Qc2 {[%clk 0:03:01.1]}
5... c6 {[%clk 0:02:55.6]} 6. Nc3 {[%clk 0:03:00.9]} 6... g6 {[%clk 0:02:49.7]}
7. Bg5 {[%clk 0:02:58.9]} 7... Be7 {[%clk 0:02:44.7]} 8. e3 {[%clk 0:02:58.1]}
8... Bf5 {[%clk 0:02:44]} 9. Bd3 {[%clk 0:02:56.6]} 9... Bxd3 {[%clk 0:02:44.3]}
10. Qxd3 {[%clk 0:02:56.9]} 10... Nbd7 {[%clk 0:02:43.3]} 11. Bh6 {[%clk
0:02:52]} 11... Ng4 {[%clk 0:02:26.9]} 12. Bf4 {[%clk 0:02:44]} 12... O-O {[%clk
0:02:27.3]} 13. h3 {[%clk 0:02:36.7]} 13... Ngf6 {[%clk 0:02:25.8]} 14. O-O
{[%clk 0:02:36.7]} 14... Re8 {[%clk 0:02:25.7]} 15. Rab1 {[%clk 0:02:34.7]}
15... Nb6 {[%clk 0:02:25.1]} 16. Ne5 {[%clk 0:02:33.8]} 16... Nfd7 {[%clk
0:02:21.9]} 17. Nf3 {[%clk 0:02:25.2]} 17... Bb4 {[%clk 0:02:08.9]} 18. Rfc1
{[%clk 0:02:15.8]} 18... Qe7 {[%clk 0:02:08]} 19. Ne5 {[%clk 0:02:10.4]} 19...
Nxe5 {[%clk 0:02:04]} 20. Bxe5 {[%clk 0:02:10.4]} 20... Bd6 {[%clk 0:02:04.2]}
21. Bxd6 {[%clk 0:02:05.1]} 21... Qxd6 {[%clk 0:02:05.1]} 22. Ne2 {[%clk
0:01:54.7]} 22... Re4 {[%clk 0:01:54.1]} 23. b3 {[%clk 0:01:45.9]} 23... Rae8
{[%clk 0:01:51.6]} 24. Qd2 {[%clk 0:01:46]} 24... Qa3 {[%clk 0:01:44]} 25. Nf4
{[%clk 0:01:42]} 25... Kg7 {[%clk 0:01:33.5]} 26. Nd3 {[%clk 0:01:40.6]} 26...
Qd6 {[%clk 0:01:26.7]} 27. Qa5 {[%clk 0:01:28.1]} 27... Nc8 {[%clk 0:01:20.1]}
28. Nc5 {[%clk 0:01:22.3]} 28... R4e7 {[%clk 0:01:19.7]} 29. Qd2 {[%clk
0:01:20.2]} 29... g5 {[%clk 0:01:08.2]} 30. b4 {[%clk 0:01:17]} 30... Nb6 {[%clk
0:00:57.3]} 31. b5 {[%clk 0:01:07.1]} 31... Nc4 {[%clk 0:00:56.9]} 32. Qc3
{[%clk 0:00:58.9]} 32... h5 {[%clk 0:00:54.1]} 33. bxc6 {[%clk 0:00:54.1]} 33...
bxc6 {[%clk 0:00:55]} 34. Nb7 {[%clk 0:00:44.2]} 34... Qg6 {[%clk 0:00:44.2]}
35. Na5 {[%clk 0:00:40.1]} 35... Nxa5 {[%clk 0:00:36.4]} 36. Qxa5 {[%clk
0:00:40.2]} 36... g4 {[%clk 0:00:37.3]} 37. hxg4 {[%clk 0:00:30.8]} 37... hxg4
{[%clk 0:00:38.2]} 38. g3 {[%clk 0:00:27.8]} 38... Qe4 {[%clk 0:00:36.1]} 39.
Kf1 {[%clk 0:00:22]} 39... Qh1+ {[%clk 0:00:29.2]} 40. Ke2 {[%clk 0:00:21.9]}
40... Qf3+ {[%clk 0:00:30.1]} 41. Kd3 {[%clk 0:00:19]} 41... Qxf2 {[%clk
0:00:24.7]} 0-1

[Event "Late-Titled-Tuesday-Blitz-April-02-2024"]
[Site "Chess.com"]
[Date "2024.04.02"]
[Round "8"]
[White "Sanan_Sjugirov"]
[Black "Revan_2002"]
[Result "1-0"]
[WhiteElo "2963"]
[BlackElo "2737"]
[TimeControl "180+1"]
[EndTime "15:26:38 PDT"]
[Termination "Sanan_Sjugirov won on time"]

1. d4 {[%clk 0:02:58.3]} 1... Nf6 {[%clk 0:02:58.8]} 2. c4 {[%clk 0:02:58.8]}
2... g6 {[%clk 0:02:57.6]} 3. Nc3 {[%clk 0:02:58.3]} 3... Bg7 {[%clk 0:02:58]}
4. e4 {[%clk 0:02:58.9]} 4... d6 {[%clk 0:02:58.6]} 5. h3 {[%clk 0:02:59.4]}
5... O-O {[%clk 0:02:58.7]} 6. Be3 {[%clk 0:03:00]} 6... e5 {[%clk 0:02:54.9]}
7. d5 {[%clk 0:02:59.9]} 7... a5 {[%clk 0:02:46.9]} 8. g4 {[%clk 0:02:59.6]}
8... Na6 {[%clk 0:02:47.2]} 9. Nge2 {[%clk 0:02:59.8]} 9... Nc5 {[%clk
0:02:46.1]} 10. Ng3 {[%clk 0:03:00]} 10... c6 {[%clk 0:02:30.6]} 11. Be2 {[%clk
0:03:00.3]} 11... a4 {[%clk 0:02:26.6]} 12. h4 {[%clk 0:02:56.4]} 12... cxd5
{[%clk 0:02:24.1]} 13. cxd5 {[%clk 0:02:54.8]} 13... Qa5 {[%clk 0:02:23.1]} 14.
Bxc5 {[%clk 0:02:42.8]} 14... Qxc5 {[%clk 0:02:21.7]} 15. a3 {[%clk 0:02:34.9]}
15... Bd7 {[%clk 0:02:18.2]} 16. g5 {[%clk 0:02:33.8]} 16... Ne8 {[%clk
0:02:16.2]} 17. h5 {[%clk 0:02:34.1]} 17... b5 {[%clk 0:02:11.4]} 18. Rc1 {[%clk
0:02:31.3]} 18... Qb6 {[%clk 0:02:10.4]} 19. Na2 {[%clk 0:02:23.4]} 19... f6
{[%clk 0:01:52.3]} 20. hxg6 {[%clk 0:02:15.2]} 20... hxg6 {[%clk 0:01:51.4]} 21.
Bg4 {[%clk 0:02:10.7]} 21... fxg5 {[%clk 0:01:51.1]} 22. Rh2 {[%clk 0:02:02]}
22... Ra7 {[%clk 0:01:33.6]} 23. Nb4 {[%clk 0:01:52.5]} 23... Nf6 {[%clk
0:01:28.2]} 24. Bxd7 {[%clk 0:01:51.1]} 24... Rxd7 {[%clk 0:01:29.1]} 25. Rc6
{[%clk 0:01:49]} 25... Qa7 {[%clk 0:01:26.6]} 26. Qe2 {[%clk 0:01:27.5]} 26...
Qd4 {[%clk 0:01:17.1]} 27. Rc3 {[%clk 0:01:24.5]} 27... Rdf7 {[%clk 0:01:09.6]}
28. Nc6 {[%clk 0:01:22.6]} 28... Qb6 {[%clk 0:01:09.2]} 29. Nf1 {[%clk
0:01:11.9]} 29... Nh5 {[%clk 0:01:03.5]} 30. Ne3 {[%clk 0:01:06.3]} 30... Rf4
{[%clk 0:00:41.2]} 31. Ne7+ {[%clk 0:00:58.9]} 31... Kf7 {[%clk 0:00:40.6]} 32.
Nxg6 {[%clk 0:00:59.5]} 32... Nf6 {[%clk 0:00:24.3]} 33. Nxf4 {[%clk 0:00:49.8]}
33... exf4 {[%clk 0:00:22.6]} 34. Nf5 {[%clk 0:00:50.4]} 34... Re8 {[%clk
0:00:18.8]} 35. Rc6 {[%clk 0:00:40.2]} 35... Qa5+ {[%clk 0:00:14.2]} 36. Kf1
{[%clk 0:00:39.7]} 36... Bf8 {[%clk 0:00:05.1]} 37. Nxd6+ {[%clk 0:00:31.4]}
37... Bxd6 {[%clk 0:00:06]} 38. Rxd6 {[%clk 0:00:32.3]} 38... Qc7 {[%clk
0:00:04.3]} 39. Rc6 {[%clk 0:00:26.9]} 39... Qe5 {[%clk 0:00:04.8]} 40. Rh6
{[%clk 0:00:24.6]} 40... Ng4 {[%clk 0:00:01.2]} 41. Qxg4 {[%clk 0:00:24.3]} 1-0

[Event "Late-Titled-Tuesday-Blitz-April-02-2024"]
[Site "Chess.com"]
[Date "2024.04.02"]
[Round "8"]
[White "jaskol95"]
[Black "LeninGuerra"]
[Result "0-1"]
[WhiteElo "2537"]
[BlackElo "2714"]
[TimeControl "180+1"]
[EndTime "15:26:38 PDT"]
[Termination "LeninGuerra won by checkmate"]

1. e4 {[%clk 0:02:51.7]} 1... c5 {[%clk 0:02:59.8]} 2. Nf3 {[%clk 0:02:52.2]}
2... e6 {[%clk 0:02:59.8]} 3. b3 {[%clk 0:02:50.7]} 3... Nc6 {[%clk 0:02:59.2]}
4. Bb2 {[%clk 0:02:51.2]} 4... Nf6 {[%clk 0:02:59.1]} 5. Nc3 {[%clk 0:02:49]}
5... d5 {[%clk 0:02:59]} 6. exd5 {[%clk 0:02:49.4]} 6... Nxd5 {[%clk 0:02:58.8]}
7. Nxd5 {[%clk 0:02:49.4]} 7... Qxd5 {[%clk 0:02:59.6]} 8. Bc4 {[%clk 0:02:49]}
8... Qh5 {[%clk 0:02:58.9]} 9. Qe2 {[%clk 0:02:48.7]} 9... Bd6 {[%clk
0:02:56.2]} 10. O-O-O {[%clk 0:02:48.1]} 10... Bd7 {[%clk 0:02:51]} 11. Bxg7
{[%clk 0:02:38.2]} 11... Rg8 {[%clk 0:02:49.9]} 12. Bf6 {[%clk 0:02:38.9]} 12...
Qf5 {[%clk 0:02:45.1]} 13. Bb2 {[%clk 0:02:22.7]} 13... Nb4 {[%clk 0:02:37.8]}
14. d4 {[%clk 0:02:15.4]} 14... Rxg2 {[%clk 0:02:23.2]} 15. dxc5 {[%clk
0:02:07.3]} 15... Bxc5 {[%clk 0:02:17]} 16. Bd4 {[%clk 0:01:42.6]} 16... Bxd4
{[%clk 0:01:59]} 17. Rxd4 {[%clk 0:01:41.9]} 17... Bc6 {[%clk 0:01:52.5]} 18.
Nh4 {[%clk 0:01:21.4]} 18... Qg5+ {[%clk 0:01:49.5]} 19. Kb1 {[%clk 0:01:22]}
19... Rg1+ {[%clk 0:01:41.3]} 20. Rxg1 {[%clk 0:01:21.6]} 20... Qxg1+ {[%clk
0:01:42]} 21. Kb2 {[%clk 0:01:22.3]} 21... Qg7 {[%clk 0:01:31.3]} 22. c3 {[%clk
0:01:11.2]} 22... Qf6 {[%clk 0:01:15.8]} 23. Ka3 {[%clk 0:00:38.7]} 23... Nd5
{[%clk 0:01:08.4]} 24. Bxd5 {[%clk 0:00:36.7]} 24... Bxd5 {[%clk 0:01:08.4]} 25.
Rxd5 {[%clk 0:00:35.9]} 25... Qe7+ {[%clk 0:01:06.3]} 26. b4 {[%clk 0:00:33.6]}
26... exd5 {[%clk 0:01:06.5]} 27. Qb5+ {[%clk 0:00:33.5]} 27... Kf8 {[%clk
0:01:00.2]} 28. Nf5 {[%clk 0:00:31.4]} 28... Qe6 {[%clk 0:00:57.9]} 29. Qxb7
{[%clk 0:00:29.5]} 29... Rc8 {[%clk 0:00:38.5]} 30. Nd4 {[%clk 0:00:29.9]} 30...
Qh3 {[%clk 0:00:38.7]} 31. Nb5 {[%clk 0:00:22.4]} 31... d4 {[%clk 0:00:35.1]}
32. Qd5 {[%clk 0:00:16.8]} 32... dxc3 {[%clk 0:00:24.8]} 33. Nd6 {[%clk
0:00:17.1]} 33... c2+ {[%clk 0:00:22.4]} 34. Ka4 {[%clk 0:00:17.8]} 34... Qd7+
{[%clk 0:00:20.8]} 35. b5 {[%clk 0:00:09.7]} 35... c1=Q {[%clk 0:00:19.6]} 36.
Qe5 {[%clk 0:00:10.3]} 36... Qc2+ {[%clk 0:00:18.3]} 37. Kb4 {[%clk 0:00:09.4]}
37... Qd2+ {[%clk 0:00:13.4]} 38. Ka4 {[%clk 0:00:09.7]} 38... Qd1+ {[%clk
0:00:11.7]} 39. Ka5 {[%clk 0:00:08.6]} 39... Qc7+ {[%clk 0:00:10.9]} 40. Ka6
{[%clk 0:00:09]} 40... Qb6# {[%clk 0:00:08.4]} 0-1